Cogmind - Beta 14 @@@ ROGUE MODE // 2024.08.26 @ 07:34:29 Player: eseft Result: Destroyed by D-53 Grenadier with Mini Grenade Launcher Performance ------------- Evolutions (0) 0 Regions Visited (4) 800 Robots Destroyed (23) 115 Value Destroyed (470) 470 Prototype IDs (23) 460 Alien Tech Used (0) 0 Bonus (300) 300 TOTAL SCORE: 2145 Bonus ------- Aligned with FarCom 300 Cogmind --------- Core Integrity 0/250 Matter 210/300 Energy 99/100 System Corruption 0% Temperature Cool (0) Movement Rolling (100) Location -9/Mines Parts ------- > --- POWER (1) -------- (None) > --- PROPULSION (2) --- Compact Wheel > --- UTILITY (2) ------ Medium Storage Unit > --- WEAPON (2) ------- (None) > --- INVENTORY (10) --- Wheel Wheel Heat Sink High-capacity Matter Pod (180) Structural Scanner Seismic Detector Chronowheel Assault Rifle Light Cannon Makeshift Hammer Peak State ------------ > --- POWER ------------ Light Deuterium Engine > --- PROPULSION ------- Wheel Compact Wheel > --- UTILITY ---------- Medium Storage Unit Seismic Detector > --- WEAPON ----------- High-powered Shotgun Makeshift Hammer > --- INVENTORY -------- Wheel Wheel Heat Sink High-capacity Matter Pod Structural Scanner Seismic Detector Chronowheel Assault Rifle Light Cannon Grenade Launcher [Rating: 16] Favorites ----------- Power Ion Engine Engine Ion Engine Propulsion Compact Wheel Wheel Compact Wheel Utility Seismic Detector Device Seismic Detector Storage Medium Storage Unit Weapon Light Cannon Energy Gun EM Pulse Gun Ballistic Gun Assault Rifle Ballistic Cannon Light Cannon Launcher Grenade Launcher Impact Weapon Makeshift Hammer Build | -11 -10 -10 -10 -9 ------- Run | Yrd Mat Min Exi Min Slots Evolved . | . . . . . Power . | . . . . . Propulsion . | . . . . . Utility . | . . . . . Weapon . | . . . . . Parts Attached 25 | 7 11 1 2 4 Power 3 | 1 1 . 1 . Engine 3 | 1 1 . 1 . Core . | . . . . . Reactor . | . . . . . Propulsion 3 | 2 1 . . . Treads . | . . . . . Leg . | . . . . . Wheel 3 | 2 1 . . . Hover . | . . . . . Flight . | . . . . . Utility 7 | 2 5 . . . Device 5 | 1 4 . . . Storage 2 | 1 1 . . . Processor . | . . . . . Hackware . | . . . . . Protection . | . . . . . Artifact . | . . . . . Weapon 12 | 2 4 1 1 4 Energy Gun 1 | . 1 . . . Energy Cannon . | . . . . . Ballistic Gun 4 | 2 1 1 . . Ballistic Cannon 4 | . 2 . 1 1 Launcher 2 | . . . . 2 Special Weapon . | . . . . . Impact Weapon 1 | . . . . 1 Slashing Weapon . | . . . . . Piercing Weapon . | . . . . . Special Melee Weapon . | . . . . . Unidentified Prototypes . | . . . . . Parts Lost 6 | . 2 . . 4 Power 1 | . . . . 1 Propulsion 2 | . 1 . . 1 Utility 1 | . . . . 1 Weapon 2 | . 1 . . 1 Highest Loss Streak 4 | . 2 . . 4 To Critical Strikes . | . . . . . Average Slot Usage (%) 99 | . 99 100 100 88 Engine 14 | . 14 14 14 14 Wheel 27 | . 28 28 28 23 Device 13 | . 14 14 14 9 Storage 14 | . 14 14 14 14 Ballistic Gun 15 | . 18 9 14 11 Ballistic Cannon 12 | . 9 18 14 7 Peak Build Rating 16 | 7 8 10 13 16 Average Rating 8 | 5 7 9 11 11 On Entrance 7 | . 7 8 10 13 Naked Turns . | . . . . . Heaviest Build 22 | 14 22 22 22 22 Greatest Support 32 | 32 32 26 26 26 Greatest Overweight (x) 1 | . . . . 1 Average Overweight (x) . | . . . . . Largest Inventory Capacity 10 | 8 10 10 10 10 Average Capacity 9 | 7 9 10 10 10 Most Carried 10 | 8 10 10 10 10 Average Carried 9 | 3 9 9 9 10 Final Capacity 10 | 8 10 10 10 10 Final Carried 10 | 7 10 10 10 10 Class Distribution -------------------- 100% | Mutant Dominant Class ---------------- Mutant | -10/Materials Mutant | -10/Mines Mutant | -10/Exiles Mutant | -9/Mines Resources | -11 -10 -10 -10 -9 ----------- Run | Yrd Mat Min Exi Min Matter Collected 697 | 243 324 110 20 . Remotely . | . . . . . Salvage Created 680 | 39 552 36 . 53 Parts 36 | 9 23 1 . 3 Haulers Intercepted 2 | . 2 . . . Recyclers Shooed 3 | 1 2 . . . Parts Field Recycled . | . . . . . Retrieved Matter . | . . . . . Parts Self-Destructed . | . . . . . Prevented . | . . . . . Kills | -11 -10 -10 -10 -9 ------- Run | Yrd Mat Min Exi Min Combat Hostiles Destroyed 24 | . 11 2 . 11 Guns 4 | . 3 1 . . Cannons 9 | . 8 1 . . AOE 11 | . . . . 11 Classes Destroyed 6 | 1 4 . . 1 Tunneler 3 | 3 . . . . Hauler 2 | . 2 . . . Recycler 2 | . 2 . . . Swarmer 6 | . 3 . . 3 Grunt 10 | . 8 2 . . Assembled 8 | . . . . 8 Best Kill Streak 8 | 3 4 2 . 8 Combat Bots Only 8 | . 4 2 . 8 Max Kills in Single Turn 5 | 1 1 1 . 5 Gunslinging . | . . . . . Exploded 5 | . . . . 5 Melee . | . . . . . Uniques/NPCs Destroyed . | . . . . . Combat | -11 -10 -10 -10 -9 -------- Run | Yrd Mat Min Exi Min Hostile Shots Fired 70 | . 37 14 . 19 Missed 14 | . 8 3 . 3 Damage Taken 925 | . 338 138 . 449 Core 296 | . 56 12 . 228 Absorbed by Shields . | . . . . . Core Remaining (%) 100 | 100 . . . . Volleys Fired 58 | 8 34 9 . 7 Largest 2 | 2 2 2 . 1 Hottest 70 | 40 70 60 . 30 Shots Fired 108 | 16 67 18 . 7 Gun 62 | 16 37 9 . . Cannon 39 | . 30 9 . . Launcher 7 | . . . . 7 Special . | . . . . . Kinetic 99 | 16 65 18 . . Thermal . | . . . . . Explosive 7 | . . . . 7 Electromagnetic 2 | . 2 . . . Robot Hit Streak 9 | 7 9 7 . 5 Robot Miss Streak 4 | 4 4 2 . . Penetration Max . | . . . . . Secondary Targets . | . . . . . Shots Hit Robots 70 | 10 40 16 . 4 Core Hits 47 | 4 22 4 . 17 Critical Kills . | . . . . . Critical Parts Destroyed . | . . . . . Critical Strikes . | . . . . . Melee Attacks 2 | . . . . 2 Impact 2 | . . . . 2 Slashing . | . . . . . Piercing . | . . . . . Sneak Attacks . | . . . . . Combat Hostiles . | . . . . . Follow-up Attacks . | . . . . . Damage Inflicted 1575 | 116 606 308 . 545 Guns 561 | 116 272 173 . . Cannons 421 | . 286 135 . . Explosions 593 | . 48 . . 545 Melee . | . . . . . Ramming . | . . . . . Kinetic 970 | 116 546 308 . . Thermal 48 | . 48 . . . Explosive 545 | . . . . 545 Electromagnetic 12 | . 12 . . . Impact . | . . . . . Slashing . | . . . . . Piercing . | . . . . . Highest Corruption . | . . . . . Average Corruption . | . . . . . Corruption Purged . | . . . . . Corruption Blocked . | . . . . . Overload Shots . | . . . . . Overflow Damage 6 | . . . . 6 Projectiles . | . . . . . Explosions 6 | . . . . 6 Melee . | . . . . . Knockbacks 6 | . 6 . . . Impact . | . . . . . Kinetic 4 | . 4 . . . Secondary 2 | . 2 . . . Self-Inflicted Damage 120 | . 37 . . 83 Shots 5 | . 1 . . 4 Rammed . | . . . . . Targets Rammed . | . . . . . Kicked . | . . . . . Crushed . | . . . . . Highest Temperature 72 | . 72 66 . 17 Average Temperature 26 | . 22 39 . 6 Received Heat Transfer 267 | . 132 75 . 60 Siege Activations . | . . . . . Robots Corrupted . | . . . . . Combat Hostiles . | . . . . . Parts Fried . | . . . . . Impact Corruptions . | . . . . . Robots Melted . | . . . . . Combat Hostiles . | . . . . . Parts Melted . | . . . . . Heat Transferred 100 | . 100 . . . Parts Sabotaged . | . . . . . Parts Stolen . | . . . . . Parts Stripped . | . . . . . Power Chain Reactions 1 | . 1 . . . Alert | -11 -10 -10 -10 -9 ------- Run | Yrd Mat Min Exi Min Peak Influence 277 | 15 277 158 . 91 Initial 108 | . 9 108 . . Average 71 | 5 64 98 . 79 Maximum Alert Level 1 | . 1 . . . Low Security (%) 93 | 100 90 100 . 100 Level 1 6 | . 9 . . . Level 2 . | . . . . . Level 3 . | . . . . . Level 4 . | . . . . . Level 5 . | . . . . . High Security . | . . . . . Max Security . | . . . . . Squads Dispatched 4 | . 3 1 . . Investigation 3 | . 2 1 . . Extermination . | . . . . . Reinforcement 1 | . 1 . . . Assault . | . . . . . Garrison . | . . . . . Intercept . | . . . . . Searches Triggered . | . . . . . Construction Impeded . | . . . . . Haulers Reinforced . | . . . . . Active Scanning Responses . | . . . . . Cargo Convoy Interrupts . | . . . . . Stealth | -11 -10 -10 -10 -9 --------- Run | Yrd Mat Min Exi Min Distress Signals 2 | . 2 . . . Communications Jammed . | . . . . . Distress Signals . | . . . . . Times Spotted 45 | . 28 2 . 15 Peak Tracking Total 14 | . 6 2 . 14 Tactical Retreats 2 | . 1 . . 1 Traps | -11 -10 -10 -10 -9 ------- Run | Yrd Mat Min Exi Min Traps Triggered . | . . . . . Indirectly . | . . . . . Trap Hack Attempts . | . . . . . Triggered . | . . . . . Disarmed . | . . . . . Reprogrammed . | . . . . . Reused . | . . . . . Traps Extracted . | . . . . . Installed . | . . . . . Triggered . | . . . . . Machines | -11 -10 -10 -10 -9 ---------- Run | Yrd Mat Min Exi Min Machines Disabled 2 | . 2 . . . Max in Single Turn 2 | . 2 . . . Machines Repaired . | . . . . . Machines Dismantled . | . . . . . Machines Sabotaged . | . . . . . Overloaded Fab Kills . | . . . . . Hacking | -11 -10 -10 -10 -9 --------- Run | Yrd Mat Min Exi Min Machines Accessed 8 | . 5 1 2 . Terminals 4 | . 4 . . . Fabricators . | . . . . . Repair Stations . | . . . . . Recycling Units 1 | . 1 . . . Scanalyzers . | . . . . . Garrison Access . | . . . . . Total Hacks 15 | . 12 1 2 . Successful 4 | . 1 1 2 . Failed 11 | . 11 . . . Catastrophic 1 | . 1 . . . Database Lockouts . | . . . . . Manual 12 | . 10 . 2 . Terminals 11 | . 11 . . . Fabricators . | . . . . . Repair Stations . | . . . . . Recycling Units 1 | . 1 . . . Scanalyzers . | . . . . . Garrison Access . | . . . . . Terminal Hacks 3 | . . 1 2 . Record 1 | . . . 1 . Open Door 1 | . . 1 . . Derelict Proto ID Bank 1 | . . . 1 . Fabricator Hacks . | . . . . . Repair Station Hacks . | . . . . . Recycling Unit Hacks . | . . . . . Scanalyzer . | . . . . . Garrison Access Hacks . | . . . . . Unauthorized Hacks 1 | . 1 . . . Terminals . | . . . . . Fabricators . | . . . . . Repair Stations . | . . . . . Recycling Units 1 | . 1 . . . Monitor 1 | . 1 . . . Scanalyzers . | . . . . . Garrison Access . | . . . . . Data Cores Recovered . | . . . . . Used . | . . . . . Hacking Detections 5 | . 5 . . . Full Trace Events 2 | . 2 . . . Feedback Events . | . . . . . Feedback Blocked . | . . . . . Robot Schematics Acquired . | . . . . . Robots Built . | . . . . . Authchips . | . . . . . Time . | . . . . . Total Robot Build Rating . | . . . . . Part Schematics Acquired . | . . . . . Parts Built . | . . . . . Authchips . | . . . . . Time . | . . . . . Total Part Build Rating . | . . . . . Parts Repaired . | . . . . . Time . | . . . . . Parts Recycled . | . . . . . Recycled Matter . | . . . . . Retrieved Matter . | . . . . . Retrieved Components . | . . . . . Parts Scanalyzed . | . . . . . Part Schematics Acquired . | . . . . . Parts Damaged . | . . . . . Bothacking | -11 -10 -10 -10 -9 ------------ Run | Yrd Mat Min Exi Min Used RIF Installer . | . . . . . Robots Hacked . | . . . . . Non-combat . | . . . . . Combat . | . . . . . Robot Hacks Applied . | . . . . . Relay Couplers Released . | . . . . . Fabnet Peak Effective % . | . . . . . Robots Rewired . | . . . . . Allies Hacked . | . . . . . Hacks Repelled . | . . . . . Allies | -11 -10 -10 -10 -9 -------- Run | Yrd Mat Min Exi Min Total Allies . | . . . . . Largest Group . | . . . . . Highest-Rated Group . | . . . . . Highest-Rated Ally . | . . . . . Total Orders . | . . . . . Ally Attacks . | . . . . . Total Damage . | . . . . . Kills . | . . . . . Allies Corrupted . | . . . . . Allies Melted 1 | . . 1 . . Intel | -11 -10 -10 -10 -9 ------- Run | Yrd Mat Min Exi Min Robot Analysis Total . | . . . . . Derelict Logs Recovered 1 | . . 1 . . Drone Launches . | . . . . . Drone Recoveries . | . . . . . Exploration | -11 -10 -10 -10 -9 ------------- Run | Yrd Mat Min Exi Min Turns Passed 2027 | 95 1120 502 250 60 Spaces Moved 1336 | 53 603 369 272 39 Core 1 | 1 . . . . Treads . | . . . . . Legs . | . . . . . Wheels 1335 | 52 603 369 272 39 Hover . | . . . . . Flight . | . . . . . Fastest Speed 50 | 50 90 90 90 90 Average Speed 91 | 99 93 90 90 93 Slowest Speed 115 | 100 100 90 90 115 Overloaded Moves . | . . . . . Propulsion Burnouts . | . . . . . Robots Hopped . | . . . . . Cave-ins Triggered . | . . . . . Exploration Rate (%) 45 | 4 67 77 64 15 Regions Visited 4 Branch Regions 3 Pre-discovered Areas . | . . . . . Known Exits Taken . | . . . . . Unknown Exits Taken 4 | 1 1 1 1 . Scrap Searched 1 | . . 1 . . Spaces Dug 9 | . . . . 9 Terrain Destroyed 67 | . 4 . . 63 Melee . | . . . . . Projectile . | . . . . . AOE 67 | . 4 . . 63 Terrain Rammed . | . . . . . Walls Destroyed . | . . . . . Machines Disabled . | . . . . . Actions | -11 -10 -10 -10 -9 --------- Run | Yrd Mat Min Exi Min Total 2026 | 79 1097 521 277 52 Wait 561 | . 424 137 . . Move 1332 | 52 602 368 271 39 Hop . | . . . . . Pick Up 31 | 10 16 3 2 . Fast Attach 8 | 6 2 . . . Attach 4 | 1 2 . 1 . Detach . | . . . . . Swap 13 | . 7 1 1 4 Drop 17 | 2 10 3 2 . Fire 58 | 8 34 9 . 7 Melee 2 | . . . . 2 Ram . | . . . . . Kick . | . . . . . Crush . | . . . . . Escape Stasis . | . . . . . Rewire . | . . . . . Trap . | . . . . . Miscellaneous . | . . . . . Route ------- -11/Scrapyard -10/Materials (discovered 2 exits: *Mat / *Min) -10/Mines (discovered 2 exits: Mat / *Exi) -10/Exiles -9/Mines History --------- Turn | Location | Event 12 | -11/Scrapyard | Discovered new exit (range 16) 96 | -11/Scrapyard | Entered Materials 304 | -10/Materials | Build established: Mutant 489 | -10/Materials | Discovered new exit (range 11) 1100 | -10/Materials | Discovered new exit (range 14) 1216 | -10/Materials | Entered Mines 1246 | -10/Mines | A weapon hastily lodged in a ceiling crevice suddenly fell to the ground 1309 | -10/Mines | Identified exit to Materials 1324 | -10/Mines | Met a Derelict shopkeep closing up shop 1713 | -10/Mines | Deemed a non-threat by the Exiles lab entrance 1713 | -10/Mines | Discovered new exit (range 5) 1718 | -10/Mines | Entered Exiles 1739 | -10/Exiles | Met 8R-AWN 1755 | -10/Exiles | Met EX-HEX 1782 | -10/Exiles | Met EX-BIN 1794 | -10/Exiles | Aligned with FarCom system 1795 | -10/Exiles | Given EX-Vault access code 1827 | -10/Exiles | Opened EX-Vault 1835 | -10/Exiles | Found Chronowheel 1867 | -10/Exiles | Exiles lab attacked by MAIN.C 1961 | -10/Exiles | Discovered new exit (range 10) 1968 | -10/Exiles | Left Exiles lab with Chronowheel 1968 | -10/Exiles | Entered Mines 1988 | -9/Mines | Assembled infested the area 1993 | -9/Mines | Assisted by a Guerilla fighting off Assembled 2011 | -9/Mines | Core integrity fell below 50% 2020 | -9/Mines | Core integrity fell below 20% 2028 | -9/Mines | Destroyed by D-53 Grenadier with Mini Grenade Launcher Last Messages --------------- 02013_ Destroyed Asb. Hover Unit. 02013_ as-94977 destroyed. 02013_ as-72011 destroyed. 02013_ as-49449 destroyed. 02013_ as-58663 destroyed. 02013_ as-12643 destroyed. 02015_ as-12207 destroyed. 02015_ as-74535 destroyed. 02015_ as-13212 destroyed. 02021_ as-21780 destroyed. 02021_ Grenade Launcher destroyed. 02021_ Destroyed Grenade Launcher. 02023_ Lgt. Deuterium Engine destroyed. Open spaces previously occupied by now-destroyed walls and earth have a slight glow to them. Consecutive moves through these unstable areas may cause a cave-in, but only if doing so for extended periods. Tunneling a short distance between rooms is safe unless the area was destabilized by an explosion. Map ----- +----------------------------------------------------+ | ??????????????????????????? ??????? | | ???????????????????????????? ???????? | | ????????????????????????????# ????????? | | ????????????????????????????# """ #????????? | | ???????????????????????????## """ #????????? | | ?????????????????????????### """ #????????? | | ????????????????????????## #????????? | | ????????????????????????# #?????????? | | ???????????????????????## #??????????? | | ??????????????????????## #??????????? | | ??????? ########## ## ###?????????? | | ??????? #?????????? | | ??????? ##????????? | | ??????????????######## %r % #????????? | | ?????????????????????## #????????? | | ????????????????????## d #???????? | | ????????????????????# d ????? | | ????????????????????# #???? | | ???????????????????## # ##???? | | ???????????????????# ######### ##????? | | ???????????????????# #???????? g#?????? | | ???????????????????# #????????? #?????? | | ???????????????????# #????????? #?????? | | ???????????????????# #?????????l ?????? | | ???????????????????## #????????????????? | | ????????????????????### @ #????????????????? | | ??????????????????????#######????????????????? | | ?????????????????????????????????????????????? | | ?????????????????????????????????????????????? | | ?????????????????????????????????????????????? | | ?????????????????????????????????????????????? | | ?????????????????????????????????????????????? | | ?????????????????????????????????????????????? | | ?????????????????????????????????????????????? | | ?????????????????????????????????????????????? | | ?????????????????????????????????????????????? | | ?????????????????????????????????????????????? | | ?????????????????????????????????????????????? | | ?????????????????????????????????????????????? | | ?????????????????????????????????????????????? | | ?????????????????????????????????????????????? | | ?????????????????????????????????????????????? | | ?????????????????????????????????????????????? | | ?????????????????????????????????????????????? | | ?????????????????????????????????????????????? | | ?????????????????????????????????????????????? | | ?????????????????????????????????????????????? | | ?????????????????????????????????????????????? | | ?????????????????????????????????????????????? | | ?????????????????????????????????????????????? | +----------------------------------------------------+ Best States ------------- Heat Dissipation 25 Energy Generation 14 Energy Capacity 250 Matter Stores 300 Matter Capacity 300 Sight Range 16 Terrain Scan Density 10 Evasion (%) 42 Item Schematics ----------------- None Robot Schematics ------------------ None Fabricated ------------ Nothing Alien Tech Used ----------------- None Achievements -------------- None Challenges ------------ None Game ------ Seed EncryptedTrackerPick Manual? 0 Play Time 00:57:10 Cumulative 13.0 hours Start 2024.08.26 @ 06:17:42 End 2024.08.26 @ 07:34:29 Sessions 1 Manual Loads 0 Difficulty Rogue Special Mode None Game No. 13 Rogue 13 Adventurer 0 Explorer 0 Win Type - Total 0 Types 0/0/0/0/0/0/0/0/0 Lore% 11 Gallery% 12 Achievement% 15 Wizard Run 0 Options --------- Layout 1 ASCII 0 Keyboard 1 Movement Vi Keybinds 0 Fullscreen 1 Font 24/Smallcaps Map View 50x35 Zoom Use 0% Tactical HUD 1 Map Filters NONE Filters NONE Steam 1 RUN: 3d89049e-ca42-4cf8-9b87-01efcbdbd333